[Event "29th CRO-chT Junior 2020"]
[Site "Cakovec"]
[Date "2020.07.18"]
[Round "9.5"]
[White "Levacic, Matej"]
[Black "Damjanovic, Stjepan"]
[Result "1-0"]
[ECO "E10"]
[WhiteElo "2040"]
[BlackElo "1867"]
[Annotator "NA"]
[PlyCount "105"]
[EventDate "2020.07.14"]
[EventType "team-tourn"]
[EventCountry "CRO"]
[SourceTitle "playchess.com"]
[Source "ChessBase"]
[SourceQuality "1"]
[TimeControl "5400+30"]

1. d4 {[%emt 0:00:30]} Nf6 {[%emt 0:00:30]} 2. c4 {[%emt 0:00:30]} e6 {[%emt 0:00:00]} 3. Nf3 {[%emt 0:00:00]} c5 {[%emt 0:01:00]} 4. d5 {[%emt 0:00:00]} d6 {[%emt 0:00:30]} 5. Nc3 {[%emt 0:00:30]} e5 {[%emt 0:01:30]} 6. e4 {[%emt 0:05:30]} Be7 {[%emt 0:01:30]} 7. g3 {[%emt 0:05:30]} O-O {[%emt 0:02:30]} 8. Bg2 {[%emt 0:00:30]} Ne8 {[%emt 0:02:30] E10: Blumenfeld Gambit.} 9. O-O {[%emt 0:00:30]} f5 {[%emt 0:00:30] [#]} 10. Ne1 $146 {[%emt 0:03:30]} ({Predecessor:} 10. exf5 Bxf5 11. Be3 Qd7 12. Nd2 Na6 13. a3 Nec7 14. Nde4 b5 15. b3 bxc4 16. bxc4 {1-0 (43) Almeida Quintana,O (2593)-Medina Colindres,J (2226) Mexico City 2010}) 10... f4 {[%emt 0:06:30]} 11. gxf4 {[%emt 0:02:30]} exf4 {[%emt 0:00:30]} 12. Nd3 {[%emt 0:00:30]} Bg5 {[%emt 0:01:30]} (12... g5 $14) 13. e5 {[%emt 0:02:30]} dxe5 {[%emt 0:01:30]} 14. Nxe5 {[%emt 0:02:30]} Qf6 {[%emt 0:00:30]} 15. Re1 {[%emt 0:10:30]} Nd6 {[%emt 0:01:30]} 16. Nf3 {[%emt 0:13:30]} Bg4 {[%emt 0:07:30]} 17. Ne4 {[%emt 0:01:30]} (17. h3 $14 Bxf3 18. Bxf3 (18. Qxf3 Nxc4 19. Ne4 Qe5 $16)) 17... Nxe4 {[%emt 0:00:30]} 18. Rxe4 {[%emt 0:00:30]} Nd7 {[%emt 0:01:30]} 19. Qb3 {[%emt 0:08:30]} Qg6 {[%emt 0:26:30]} 20. Re1 {[%emt 0:02:30]} Bh6 {[%emt 0:06:30]} 21. h3 {[%emt 0:07:30]} Bh5 {[%emt 0:00:30]} 22. Re6 {[%emt 0:01:30]} Rf6 {[%emt 0:13:30]} 23. Re7 {[%emt 0:03:30]} Rb6 {[%emt 0:06:44]} 24. Qc3 {[%emt 0:03:30]} Nf6 {[%emt 0:02:42]} 25. Ne5 {[%emt 0:06:30]} Qf5 {[%emt 0:01:00]} ({Black should play} 25... Qg5 $11 26. Nf3 Nxd5 {[%mdl 64] Double Attack} 27. Nxg5 Nxc3) 26. Qd3 {[%emt 0:00:33]} Qg5 {[%emt 0:02:42]} 27. Nf3 $1 {[%emt 0:00:37]} Bxf3 $1 {[%emt 0:00:56]} 28. Qxf3 {[%emt 0:00:07]} Rf8 {[%emt 0:02:06]} 29. b3 {[%emt 0:02:16]} (29. Bd2 $14) 29... Ng4 $11 {[%emt 0:01:30]} 30. Re6 {[%emt 0:07:37]} Ne5 {[%emt 0:07:10]} 31. Qe4 {[%emt 0:00:51]} Rxe6 {[%emt 0:00:46]} 32. dxe6 {[%emt 0:00:07]} Re8 {[%emt 0:00:40]} 33. h4 {[%emt 0:02:50]} Qh5 {[%emt 0:00:31]} 34. Bxf4 {[%emt 0:01:08]} Rxe6 {[%emt 0:00:34]} 35. Qd5 {[%emt 0:01:18]} Qf5 {[%emt 0:00:24]} 36. Bxh6 {[%emt 0:01:45]} gxh6 {[%emt 0:00:15]} 37. Qxe6+ {[%emt 0:00:34]} Qxe6 {[%emt 0:00:11]} 38. Bd5 {[%emt 0:00:03]} Nf3+ {[%emt 0:00:10]} 39. Kh1 {[%emt 0:00:30]} Qxd5 {[%emt 0:00:04]} 40. cxd5 {[%emt 0:00:02]} Kf7 {[%emt 0:00:10]} 41. h5 {[%emt 0:01:26]} Ke7 {[%emt 0:00:09]} 42. Kg2 {[%emt 0:00:14]} Nd4 {[%emt 0:00:23]} 43. Re1+ {[%emt 0:00:43]} Kd6 {[%emt 0:00:03]} 44. Re8 {[%emt 0:00:40]} Kxd5 {[%emt 0:00:06]} 45. Re7 {[%emt 0:00:19]} Ne6 {[%emt 0:00:26]} 46. Rxb7 {[%emt 0:01:09]} Nf4+ {[%emt 0:00:03]} 47. Kf3 {[%emt 0:00:07]} Nxh5 {[%emt 0:00:05]} 48. Rxa7 {[%emt 0:00:44]} Nf6 {[%emt 0:00:06]} 49. Rf7 {[%emt 0:00:26]} Ne8 {[%emt 0:00:45]} 50. Rxh7 {[%emt 0:00:14]} c4 {[%emt 0:00:03]} 51. Rxh6 {[%emt 0:00:51]} cxb3 {[%emt 0:01:48]} 52. axb3 {[%emt 0:00:14]} Nc7 {[%emt 0:00:11]} 53. Ke3 {[%emt 0:00:01]} 1-0

[Event "29th CRO-chT Junior 2020"]
[Site "Cakovec"]
[Date "2020.07.18"]
[Round "9.6"]
[White "Juric, Ester"]
[Black "Ljubicic, Mario"]
[Result "1/2-1/2"]
[ECO "E90"]
[WhiteElo "1663"]
[BlackElo "1966"]
[Annotator "NA"]
[PlyCount "71"]
[EventDate "2020.07.14"]
[EventType "team-tourn"]
[EventCountry "CRO"]
[SourceTitle "playchess.com"]
[Source "ChessBase"]
[SourceQuality "1"]
[TimeControl "5400+30"]

1. d4 {[%emt 0:00:30]} Nf6 {[%emt 0:00:30]} 2. c4 {[%emt 0:00:00]} g6 {[%emt 0:00:00]} 3. Nc3 {[%emt 0:00:00]} Bg7 {[%emt 0:00:00]} 4. e4 {[%emt 0:00:00]} d6 {[%emt 0:00:00]} 5. h3 {[%emt 0:00:00]} O-O {[%emt 0:00:00]} 6. Be3 {[%emt 0:00:00]} Na6 {[%emt 0:00:30]} 7. Nf3 {[%emt 0:00:00]} c6 {[%emt 0:00:30] E90: King's Indian: Classical: Early deviations and 6 h3.} 8. Be2 {[%emt 0:01:30] 8.Rc1 is the fancy move.} e5 {[%emt 0:00:30]} 9. d5 {[%emt 0:00:30]} Nh5 {[%emt 0:00:30]} 10. g3 {[%emt 0:02:30]} f5 {[%emt 0:14:30]} (10... cxd5 $11 11. cxd5 (11. Nxd5 Nf6 $11) (11. exd5 Bd7 $11) 11... f5) 11. exf5 {[%emt 0:02:30]} gxf5 {[%emt 0:00:00]} 12. Nxe5 {[%emt 0:33:30]} Nxg3 {[%emt 0:10:00] [#]} 13. fxg3 $146 {[%emt 0:04:30]} ({Predecessor:} 13. Nxc6 Qe8 14. Rg1 bxc6 15. Rxg3 f4 16. Rxg7+ Kxg7 17. Bd4+ Kg8 18. Kd2 Bf5 19. dxc6 Nc5 20. Bf3 Qg6 21. Bd5+ Be6 22. Qf3 Rab8 23. Ne2 Rf5 {½-½ (23) Frank,T (1899)-Bogner,S (2610) London 2018}) 13... Bxe5 {[%emt 0:07:30]} 14. Rg1 {[%emt 0:00:30]} Qf6 {[%emt 0:09:30]} 15. Qb3 {[%emt 0:05:30]} (15. Qd2 $14) 15... Bd4 {[%emt 0:07:30]} 16. Bxd4 {[%emt 0:06:30]} Qxd4 {[%emt 0:00:30]} 17. Rg2 {[%emt 0:00:30]} Re8 {[%emt 0:15:30]} 18. Qd1 {[%emt 0:03:30]} Nb4 {[%emt 0:15:03]} 19. Qxd4 {[%emt 0:01:30]} Nc2+ {[%emt 0:00:07]} 20. Kd2 {[%emt 0:00:30]} Nxd4 {[%emt 0:00:10]} 21. Bh5 {[%emt 0:00:30]} Re5 {[%emt 0:02:16]} 22. Re1 {[%emt 0:01:30]} Bd7 {[%emt 0:03:26]} 23. Ne2 {[%emt 0:02:30]} Rae8 {[%emt 0:09:09]} 24. Nxd4 {[%emt 0:05:30]} Rxe1 {[%emt 0:01:18]} 25. Bxe8 {[%emt 0:00:30]} Rxe8 {[%emt 0:00:11]} 26. dxc6 {[%emt 0:00:30]} bxc6 {[%emt 0:01:34]} 27. Re2 {[%emt 0:03:30]} Rxe2+ {[%emt 0:00:51]} 28. Kxe2 {[%emt 0:00:30]} Kf7 {[%emt 0:00:19]} 29. Ke3 {[%emt 0:00:30]} a6 {[%emt 0:00:59]} 30. b4 $16 {[%emt 0:03:30]} Kf6 {[%emt 0:01:08]} 31. Kf4 {[%emt 0:00:30]} c5 {[%emt 0:00:47]} 32. bxc5 {[%emt 0:00:00]} dxc5 {[%emt 0:00:06]} 33. Nb3 {[%emt 0:00:00]} Be6 {[%emt 0:00:27]} 34. Nxc5 {[%emt 0:00:30]} Bxc4 {[%emt 0:00:02]} 35. a3 {[%emt 0:00:30]} Bb5 {[%emt 0:01:01]} 36. g4 {[%emt 0:08:41]} 1/2-1/2

[Event "29th CRO-chT Junior 2020"]
[Site "Cakovec"]
[Date "2020.07.18"]
[Round "9.7"]
[White "Bedic, Noemi"]
[Black "Mandaric, Fran"]
[Result "0-1"]
[ECO "B23"]
[WhiteElo "1712"]
[BlackElo "1671"]
[Annotator "NA"]
[PlyCount "66"]
[EventDate "2020.07.14"]
[EventType "team-tourn"]
[EventCountry "CRO"]
[SourceTitle "playchess.com"]
[Source "ChessBase"]
[SourceQuality "1"]
[TimeControl "5400+30"]

1. e4 {[%emt 0:00:30]} c5 {[%emt 0:00:30]} 2. Nc3 {[%emt 0:00:00]} Nc6 {[%emt 0:00:00]} 3. f4 {[%emt 0:00:00]} g6 {[%emt 0:00:00]} 4. Nf3 {[%emt 0:00:00]} Bg7 {[%emt 0:01:30]} 5. Bb5 {[%emt 0:00:00]} Nd4 {[%emt 0:02:30]} 6. Bc4 {[%emt 0:02:30]} e6 {[%emt 0:26:30]} 7. O-O {[%emt 0:02:30]} Ne7 {[%emt 0:00:30]} 8. e5 {[%emt 0:00:30]} Nef5 {[%emt 0:03:30]} 9. Ne4 {[%emt 0:10:30]} d5 {[%emt 0:01:30]} 10. exd6 {[%emt 0:00:30]} Nxd6 {[%emt 0:00:30]} 11. Nxd6+ {[%emt 0:03:30]} Qxd6 {[%emt 0:00:30]} 12. c3 {[%emt 0:01:30]} Nxf3+ {[%emt 0:06:30]} 13. Qxf3 {[%emt 0:00:30]} O-O {[%emt 0:00:30]} 14. Kh1 {[%emt 0:00:30]} Rb8 {[%emt 0:05:30]} 15. a4 {[%emt 0:01:30]} b6 {[%emt 0:01:30]} 16. Rd1 {[%emt 0:05:30]} Bb7 {[%emt 0:01:30]} 17. Qf2 {[%emt 0:01:30]} Rbd8 {[%emt 0:03:30]} 18. a5 {[%emt 0:01:30]} e5 {[%emt 0:06:30]} 19. fxe5 {[%emt 0:05:30]} Bxe5 {[%emt 0:01:30]} 20. axb6 {[%emt 0:04:30]} axb6 {[%emt 0:00:30]} 21. d4 {[%emt 0:02:30]} cxd4 {[%emt 0:13:30]} 22. Bh6 {[%emt 0:00:30]} Bg7 {[%emt 0:02:30]} 23. Bxg7 {[%emt 0:01:30]} Kxg7 {[%emt 0:00:00]} 24. Rxd4 {[%emt 0:00:30]} Qc5 {[%emt 0:04:34]} 25. b4 {[%emt 0:06:30]} Qc7 {[%emt 0:03:18]} 26. Rf4 {[%emt 0:01:30]} Rd6 {[%emt 0:03:04]} 27. Rd4 {[%emt 0:13:30]} Rfd8 {[%emt 0:05:28]} 28. Rad1 {[%emt 0:01:30]} Rf6 {[%emt 0:03:12]} 29. Qe2 {[%emt 0:04:30]} Rxd4 {[%emt 0:01:03]} 30. cxd4 {[%emt 0:00:30]} Qd7 {[%emt 0:01:43]} 31. Qe5 {[%emt 0:01:30]} Bxg2+ {[%emt 0:00:59]} 32. Kg1 {[%emt 0:02:30]} Qg4 {[%emt 0:00:11]} 33. Rd3 {[%emt 0:00:30]} Bh3+ {[%emt 0:01:13]} 0-1

[Event "29th CRO-chT Junior 2020"]
[Site "Cakovec"]
[Date "2020.07.18"]
[Round "9.8"]
[White "Markovic, Marko"]
[Black "Jaksic, Josip"]
[Result "0-1"]
[ECO "D37"]
[WhiteElo "2232"]
[BlackElo "1616"]
[Annotator "NA"]
[PlyCount "106"]
[EventDate "2020.07.14"]
[EventType "team-tourn"]
[EventCountry "CRO"]
[SourceTitle "playchess.com"]
[Source "ChessBase"]
[SourceQuality "1"]
[TimeControl "5400+30"]

1. d4 {[%emt 0:00:30]} Nf6 {[%emt 0:00:30]} 2. c4 {[%emt 0:00:00]} e6 {[%emt 0:00:00]} 3. Nc3 {[%emt 0:00:00]} d5 {[%emt 0:00:00]} 4. Nf3 {[%emt 0:00:30]} Be7 {[%emt 0:00:30]} 5. Bf4 {[%emt 0:00:30]} O-O {[%emt 0:00:30]} 6. e3 {[%emt 0:00:30]} b6 {[%emt 0:01:30]} 7. cxd5 {[%emt 0:00:00]} Nxd5 {[%emt 0:00:00] 7...Nxd5 is better than 7...exd5.} 8. Bd3 {[%emt 0:00:00] D37: Queen's Gambit Declined: 5 Bf4.} Nxf4 {[%emt 0:02:00]} 9. exf4 {[%emt 0:00:30]} Bb7 {[%emt 0:04:30]} 10. O-O {[%emt 0:00:30] [#]} Bf6 $146 {[%emt 0:03:30]} ({Predecessor:} 10... c5 11. Be4 Bxe4 12. Nxe4 Nc6 13. dxc5 bxc5 14. Qa4 Qb6 15. b3 Rfd8 16. Rad1 Nd4 17. Nxd4 cxd4 {0-1 (71) Florescu,C (2293)-Balakrishnan,P (2498) chess.com INT 2020}) 11. Qe2 {[%emt 0:07:30]} Qd6 {[%emt 0:10:30]} 12. g3 {[%emt 0:06:30]} Nc6 {[%emt 0:10:30]} 13. Rad1 {[%emt 0:24:30]} Rfd8 {[%emt 0:11:30]} (13... Nxd4 $15 {keeps the upper hand.} 14. Nxd4 Bxd4) 14. h4 $2 {[%emt 0:00:30]} (14. Be4 $1 $14) 14... a6 $2 {[%emt 0:12:30] [#]} (14... Nxd4 $17 {stays on course.} 15. Nxd4 Bxd4) 15. Ne4 {[%emt 0:00:30]} ({Better is} 15. Be4 $1 $16) 15... Qe7 {[%emt 0:00:30]} 16. Neg5 {[%emt 0:02:30]} (16. Nxf6+ $11 gxf6 17. Bb1) 16... h6 {[%emt 0:01:30]} 17. Ne4 {[%emt 0:27:30]} Nxd4 {[%emt 0:05:30]} 18. Nxf6+ {[%emt 0:00:30]} Qxf6 {[%emt 0:00:30]} 19. Nxd4 {[%emt 0:00:00]} Rxd4 {[%emt 0:00:30]} 20. Qe3 {[%emt 0:02:00]} Rad8 {[%emt 0:04:30]} 21. Rd2 {[%emt 0:04:30]} c5 {[%emt 0:06:30]} 22. Rfd1 {[%emt 0:00:30]} Kh8 {[%emt 0:00:30]} 23. Bb1 {[%emt 0:00:30]} Rxd2 {[%emt 0:01:30]} 24. Rxd2 {[%emt 0:00:30]} Rxd2 {[%emt 0:00:00]} 25. Qxd2 {[%emt 0:00:30]} Qd4 {[%emt 0:01:00]} 26. Qxd4 {[%emt 0:00:00]} cxd4 {[%emt 0:00:30]} 27. Kf1 {[%emt 0:00:00]} f5 {[%emt 0:09:19]} 28. Ke2 {[%emt 0:00:30]} Be4 {[%emt 0:00:25]} 29. Bd3 {[%emt 0:00:30]} b5 {[%emt 0:02:05] [#]} 30. a4 $1 {[%emt 0:00:00]} Bc6 $1 {[%emt 0:03:15]} 31. axb5 {[%emt 0:00:00]} axb5 {[%emt 0:01:22]} 32. b4 {[%emt 0:00:30]} Kg8 {[%emt 0:00:31]} 33. f3 {[%emt 0:00:30]} Kf7 {[%emt 0:00:59]} 34. g4 {[%emt 0:00:00]} (34. Bc2 $11) 34... Kf6 {[%emt 0:01:12]} 35. Kf2 {[%emt 0:01:00] [#]} fxg4 $1 {[%emt 0:02:17]} 36. fxg4 {[%emt 0:00:00] [#]} e5 {[%emt 0:00:19]} (36... g5 $142 $1 {[%cal Rg5f4]} 37. fxg5+ hxg5) 37. fxe5+ {[%emt 0:00:00]} Kxe5 {[%emt 0:00:18]} 38. Ke2 {[%emt 0:00:30]} Kf4 {[%emt 0:00:25]} 39. Bf5 {[%emt 0:00:30]} Bf3+ {[%emt 0:01:54]} 40. Kd3 {[%emt 0:01:30]} Bxg4 {[%emt 0:00:07]} 41. Bg6 {[%emt 0:00:30]} Bf5+ {[%emt 0:00:41]} 42. Bxf5 {[%emt 0:00:30]} Kxf5 {[%emt 0:00:05]} 43. Kxd4 {[%emt 0:00:30]} g5 {[%emt 0:00:13]} 44. hxg5 {[%emt 0:00:00]} hxg5 {[%emt 0:00:04]} 45. Kc5 {[%emt 0:00:00]} g4 {[%emt 0:00:10]} 46. Kxb5 {[%emt 0:00:00]} g3 {[%emt 0:00:11]} 47. Kc6 {[%emt 0:00:00]} g2 {[%emt 0:00:30]} 48. b5 {[%emt 0:00:30]} g1=Q {[%emt 0:00:00]} 49. b6 {[%emt 0:00:00]} Qg3 {[%emt 0:00:12]} 50. Kb7 {[%emt 0:00:00]} Ke6 {[%emt 0:01:05]} 51. Ka8 {[%emt 0:00:30]} Qa3+ {[%emt 0:00:12]} 52. Kb8 {[%emt 0:00:00]} Kd6 {[%emt 0:00:45]} 53. b7 {[%emt 0:00:00]} Kc6 {[%emt 0:00:12]} 0-1

[Event "29th CRO-chT Junior 2020"]
[Site "Cakovec"]
[Date "2020.07.18"]
[Round "9.9"]
[White "Tomulic, Teo"]
[Black "Muha, Miljenko"]
[Result "0-1"]
[ECO "C02"]
[WhiteElo "2359"]
[BlackElo "2310"]
[Annotator "NA"]
[PlyCount "114"]
[EventDate "2020.07.14"]
[EventType "team-tourn"]
[EventCountry "CRO"]
[SourceTitle "playchess.com"]
[Source "ChessBase"]
[SourceQuality "1"]
[TimeControl "5400+30"]

1. e4 {[%emt 0:00:30]} e6 {[%emt 0:00:30]} 2. d4 {[%emt 0:00:00]} d5 {[%emt 0:00:00]} 3. e5 {[%emt 0:00:00]} c5 {[%emt 0:00:00]} 4. c3 {[%emt 0:00:30]} Nc6 {[%emt 0:00:30]} 5. Nf3 {[%emt 0:00:00]} Qb6 {[%emt 0:00:00]} 6. Be2 {[%emt 0:00:00]} cxd4 {[%emt 0:01:00]} 7. cxd4 {[%emt 0:00:30]} Nh6 {[%emt 0:00:30]} 8. Bxh6 {[%emt 0:00:00]} Qxb2 {[%emt 0:00:30] C02: French: Advance Variation.} 9. Nbd2 {[%emt 0:00:00]} gxh6 {[%emt 0:00:00]} 10. O-O {[%emt 0:00:30]} Qa3 {[%emt 0:14:00] [#]} 11. Re1 $146 {[%emt 0:00:00]} ({Predecessor:} 11. Nb3 Qe7 12. Rc1 Bg7 13. Bb5 O-O 14. Bxc6 bxc6 15. Rxc6 Bb7 16. Rc3 Ba6 17. Re1 {1-0 (49) Nanu,C (2437)-Hrzic,I (2302) Bucharest 2002}) 11... Bd7 {[%emt 0:04:30]} 12. Bb5 {[%emt 0:08:00]} Bb4 {[%emt 0:18:30]} 13. Re3 {[%emt 0:14:30]} Qa5 {[%emt 0:00:30]} 14. Bd3 {[%emt 0:00:30]} Bxd2 $1 {[%emt 0:24:30]} 15. Nxd2 {[%emt 0:00:00]} Nxd4 {[%emt 0:00:30]} 16. Rh3 {[%emt 0:02:00]} Rc8 {[%emt 0:02:30]} 17. Nf1 {[%emt 0:04:30]} Rc3 {[%emt 0:03:30]} 18. Rc1 {[%emt 0:04:30]} (18. Rxh6 $142 Qa3 19. Be2) 18... Ke7 $2 {[%emt 0:07:30]} (18... Nc6 $17 19. Rxc3 Qxc3) 19. Rxc3 {[%emt 0:04:30]} Qxc3 {[%emt 0:00:00]} 20. Qg4 {[%emt 0:03:30]} Qa1 {[%emt 0:01:40]} 21. Rxh6 {[%emt 0:09:30]} a6 {[%emt 0:07:38]} 22. a4 {[%emt 0:11:30]} Nc6 {[%emt 0:01:03]} 23. Rh5 {[%emt 0:02:30]} Ke8 {[%emt 0:03:40]} 24. Qg7 {[%emt 0:03:30]} Rf8 {[%emt 0:00:06]} 25. g4 $2 {[%emt 0:11:30]} (25. Bxh7 $17 {might work better.} Nd4 26. Bd3) 25... Qd1 {[%emt 0:01:39]} ({Don't take} 25... Qxa4 26. Rxh7 {only move.} Bc8 27. Rh3 $19) 26. Rh3 {[%emt 0:01:49]} Qxa4 {[%emt 0:00:50]} 27. Kg2 $2 {[%emt 0:02:20]} Qa1 $19 {[%emt 0:01:03]} 28. Re3 {[%emt 0:04:40]} d4 {[%emt 0:00:01]} 29. Re2 {[%emt 0:00:46]} Nb4 {[%emt 0:00:41]} 30. Bc4 {[%emt 0:08:50]} Bc6+ {[%emt 0:00:38]} 31. f3 {[%emt 0:00:44]} Bxf3+ {[%emt 0:01:52]} 32. Kxf3 {[%emt 0:00:09]} Qxf1+ {[%emt 0:00:21]} 33. Kg3 {[%emt 0:00:15]} d3 {[%emt 0:00:36]} 34. Rf2 {[%emt 0:01:12]} Qg1+ {[%emt 0:00:11]} 35. Kf3 {[%emt 0:00:00]} Qc1 {[%emt 0:00:32]} 36. Bb3 {[%emt 0:03:44]} d2 {[%emt 0:00:32]} 37. Qxh7 {[%emt 0:00:55]} d1=Q+ {[%emt 0:01:12]} 38. Bxd1 {[%emt 0:00:00]} Qxd1+ {[%emt 0:00:34]} 39. Kg3 {[%emt 0:00:07]} Qg1+ {[%emt 0:00:30]} 40. Kf3 {[%emt 0:00:30]} Qh1+ {[%emt 0:00:14]} 41. Kg3 {[%emt 0:00:07]} Qe1 {[%emt 0:00:13]} 42. Kg2 {[%emt 0:00:53]} Qxe5 {[%emt 0:00:27]} 43. Qb1 {[%emt 0:00:26]} Qd4 {[%emt 0:01:10]} 44. h3 {[%emt 0:00:21]} Ke7 {[%emt 0:01:43]} 45. Qh7 {[%emt 0:00:40]} Nd3 {[%emt 0:00:36]} 46. Rf1 {[%emt 0:00:54]} Nf4+ {[%emt 0:00:23]} 47. Kg3 {[%emt 0:00:50]} Qd3+ {[%emt 0:00:10]} 48. Qxd3 {[%emt 0:00:05]} Nxd3 {[%emt 0:00:00]} 49. h4 {[%emt 0:00:16]} b5 {[%emt 0:00:19]} 50. h5 {[%emt 0:00:01]} b4 {[%emt 0:00:11]} 51. h6 {[%emt 0:00:08]} b3 {[%emt 0:00:17]} 52. g5 {[%emt 0:00:24]} b2 {[%emt 0:00:18]} 53. h7 {[%emt 0:01:25]} Rh8 {[%emt 0:00:13]} 54. Rxf7+ {[%emt 0:00:36]} Kxf7 {[%emt 0:00:06]} 55. g6+ {[%emt 0:00:07]} Kxg6 {[%emt 0:00:05]} 56. Kg2 {[%emt 0:00:00]} Rxh7 {[%emt 0:00:11]} 57. Kg3 {[%emt 0:00:02]} b1=Q {[%emt 0:00:06]} 0-1

[Event "29th CRO-chT Junior 2020"]
[Site "Cakovec"]
[Date "2020.07.18"]
[Round "9.10"]
[White "Cvitan, Ena"]
[Black "Radenic, Filip"]
[Result "0-1"]
[ECO "E49"]
[WhiteElo "2258"]
[BlackElo "2134"]
[Annotator "NA"]
[PlyCount "88"]
[EventDate "2020.07.14"]
[EventType "team-tourn"]
[EventCountry "CRO"]
[SourceTitle "playchess.com"]
[Source "ChessBase"]
[SourceQuality "1"]
[TimeControl "5400+30"]

1. d4 {[%emt 0:04:30]} Nf6 {[%emt 0:00:30]} 2. c4 {[%emt 0:00:00]} e6 {[%emt 0:00:30]} 3. Nc3 {[%emt 0:00:00]} Bb4 {[%emt 0:00:00]} 4. e3 {[%emt 0:00:00]} O-O {[%emt 0:00:00]} 5. Bd3 {[%emt 0:00:00]} d5 {[%emt 0:00:30]} 6. a3 {[%emt 0:00:30]} Bxc3+ {[%emt 0:00:30]} 7. bxc3 {[%emt 0:00:00]} dxc4 {[%emt 0:00:30]} 8. Bxc4 {[%emt 0:00:00]} c5 {[%emt 0:00:30]} 9. Ne2 {[%emt 0:00:00]} Qc7 {[%emt 0:00:00]} 10. Bd3 {[%emt 0:00:00]} e5 {[%emt 0:02:00] 10...Nc6 is the fancy move. Played by Liren Ding in May 2020.} 11. dxe5 {[%emt 0:05:30] E49: Nimzo-Indian: Rubinstein: 5 Bd3 d5 6 a3 Bxc3+ 7 bxc3.} Qxe5 {[%emt 0:00:00]} 12. Qc2 {[%emt 0:02:30]} Be6 {[%emt 0:07:00]} 13. Ng3 {[%emt 0:10:30] [#]} Re8 $146 {[%emt 0:11:30]} ({Predecessor:} 13... c4 14. Be2 h5 15. O-O h4 16. f4 Qa5 17. Ne4 Nxe4 18. Qxe4 Bd5 19. Qf5 Nc6 {0-1 (52) Moura,A (2427)-Rocius,M (2497) ICCF email 2001}) 14. O-O {[%emt 0:03:30]} Nbd7 {[%emt 0:07:30]} 15. f4 {[%emt 0:04:30]} Qc7 {[%emt 0:00:30]} 16. c4 {[%emt 0:00:30]} Nf8 {[%emt 0:16:30]} 17. Bb2 {[%emt 0:05:30]} Ng4 {[%emt 0:05:30]} 18. Qc3 {[%emt 0:08:30]} (18. Rae1 $16 f6 19. e4) 18... f6 {[%emt 0:01:30]} 19. h3 {[%emt 0:03:30]} Nh6 {[%emt 0:44:30]} 20. Rf3 {[%emt 0:12:30]} Rad8 {[%emt 0:00:00]} 21. Nh5 {[%emt 0:04:30]} Qf7 {[%emt 0:00:00]} 22. Rg3 {[%emt 0:05:30]} Rxd3 {[%emt 0:00:00]} 23. Nxf6+ {[%emt 0:03:30]} Kh8 {[%emt 0:00:00]} 24. Qxd3 {[%emt 0:01:30]} gxf6 {[%emt 0:00:00]} 25. Qc3 {[%emt 0:00:30]} Ng8 {[%emt 0:00:00]} 26. e4 {[%emt 0:03:30]} b6 {[%emt 0:00:00]} 27. Rd1 {[%emt 0:01:30]} Bxc4 {[%emt 0:00:00]} 28. Rd6 {[%emt 0:02:31]} Ng6 {[%emt 0:00:00]} 29. h4 $2 {[%emt 0:05:28]} (29. e5 $14 {stays ahead.} b5 30. exf6 Nxf4 31. Qf3 Ne2+ {[%mdl 64] Double Attack} 32. Kh2) 29... Rxe4 {[%emt 0:00:00]} 30. h5 {[%emt 0:01:40]} Nxf4 {[%emt 0:00:00] Discovered Attack [#]} 31. Rxg8+ $19 {[%emt 0:06:58]} (31. Qxf6+ $1 {[%mdl 512]} Qxf6 (31... Nxf6 32. Rd8+) 32. Rxf6 Ne2+ {[%mdl 64] Double Attack} 33. Kf2) 31... Kxg8 {[%emt 0:00:00]} 32. Rd8+ {[%emt 0:01:03]} Re8 {[%emt 0:00:00]} 33. Rxe8+ {[%emt 0:04:11]} Qxe8 {[%emt 0:00:00]} 34. Qxc4+ {[%emt 0:00:33]} Ne6 {[%emt 0:00:00]} 35. Bxf6 {[%emt 0:00:30]} Qf7 {[%emt 0:00:00]} 36. Qg4+ {[%emt 0:00:16]} Kf8 {[%emt 0:00:00]} 37. Qf3 {[%emt 0:01:11]} Nd4 {[%emt 0:00:00]} 38. Qa8+ {[%emt 0:00:58]} Qe8 {[%emt 0:00:00]} 39. Qxa7 {[%emt 0:00:48]} Qe3+ {[%emt 0:00:00]} 40. Kh1 {[%emt 0:00:51]} Qc1+ {[%emt 0:00:00]} 41. Kh2 {[%emt 0:00:03]} Qf4+ {[%emt 0:00:00]} 42. Kh1 {[%emt 0:00:30]} Qf1+ {[%emt 0:00:00]} 43. Kh2 {[%emt 0:00:13]} Qxf6 {[%emt 0:00:00]} 44. Qxh7 {[%emt 0:00:00]} Ne2 {[%emt 0:00:20]} 0-1